bitfinex/quotes_ETHUSD_20240816
["timestamp","ask_amount","ask_price","bid_price","bid_amount"]
[1723820113869,2.442,2580.6,2579.5,1e-05]
[1723820113870,3.87621,2579.9,2579.5,1e-05]
[1723820114205,7.75314,2579.6,2579.5,1e-05]
[1723820114409,12.405024,2579.6,2579.5,1e-05]
[1723820114568,8.528454,2579.6,2579.5,1e-05]
[1723820114969,20.63276332,2579.6,2579.5,1e-05]
[1723820115218,8.528454,2579.6,2579.5,1e-05]
[1723820115425,3.87657,2579.6,2579.5,1e-05]
[1723820115709,11.62971,2579.6,2579.5,1e-05]
[1723820116069,12.05325105,2579.6,2579.5,1e-05]
[1723820116272,11.62971,2579.6,2579.5,1e-05]
[1723820116504,13.573081,2579.6,2579.5,1e-05]
[1723820116729,9.696511,2579.6,2579.5,1e-05]
[1723820116904,13.573081,2579.6,2579.5,1e-05]
[1723820117238,7.75314,2579.6,2579.5,1e-05]
[1723820117438,3.87601,2580.0,2579.6,2.3786]
[1723820118044,3.87572,2580.2,2579.6,2.3786]
[1723820118212,3.87541,2580.4,2579.7,0.07288303]
[1723820118405,3.87541,2580.4,2579.6,2.616961]
[1723820118604,1.167869,2580.7,2579.7,0.2616971]
[1723820118605,3.87513,2580.6,2579.7,0.2616971]
[1723820118826,3.87547,2580.4,2579.7,4.17580477]
[1723820119042,3.87597,2580.0,2579.7,0.03780767]
[1723820119413,0.08218861,2580.4,2579.7,0.03780767]
[1723820119414,3.87569,2580.2,2579.7,0.03780767]
[1723820119618,7.804,2580.8,2579.8,3.87625]
[1723820119837,3.87568,2580.2,2579.7,0.27944944]
[1723820120150,3.87568,2580.2,2579.6,2.3786]
[1723820120151,3.8758,2580.2,2579.6,2.3786]
[1723820120362,3.87518,2580.6,2579.8,3.87611]
[1723820120663,11.67883,2580.8,2579.7,0.237861]
[1723820120664,7.804,2580.8,2579.7,0.237861]
[1723820120944,3.87576,2580.2,2579.7,0.237861]
[1723820121101,3.87536,2580.4,2579.7,0.237861]
[1723820121310,3.87607,2580.0,2579.6,2.3786]
[1723820121523,3.87607,2580.0,2579.5,1e-05]
[1723820121524,3.87657,2579.6,2579.5,1e-05]
[1723820122333,1.167883,2580.7,2579.5,1e-05]
[1723820122534,3.87596,2580.1,2579.6,2.4134]
[1723820122734,3.87598,2580.0,2579.6,2.4134]
[1723820123058,3.87657,2579.6,2579.5,1e-05]
[1723820123220,7.75314,2579.6,2579.5,1e-05]
[1723820123422,11.62971,2579.6,2579.5,1e-05]
[1723820124033,7.75314,2579.6,2579.5,1e-05]
[1723820124658,3.87566,2580.2,2579.5,6.35702]
[1723820124860,3.87584,2580.1,2579.6,1.023885]
[1723820125025,4.7723383,2580.6,2579.6,1.023885]
[1723820125359,3.87487,2580.8,2580.1,6.35601]
[1723820125691,3.87456,2581.0,2580.1,2.4803]
[1723820125824,7.804,2582.3,2580.1,2.4803]
[1723820126157,3.87272,2582.2,2581.2,3.87403]
[1723820126373,3.87308,2582.0,2581.1,3.87424]
[1723820126533,3.87308,2582.0,2581.3,3.91151426]
[1723820126860,3.87308,2582.0,2581.3,7.74778]
[1723820127036,4.259982,2582.2,2581.4,0.11794806]
[1723820127236,3.87291,2582.1,2581.6,2.2993]
[1723820127437,4.259982,2582.2,2581.6,2.2993]
[1723820127749,4.259982,2582.2,2581.7,0.03746306]
[1723820128329,0.387272,2582.2,2581.7,0.03746306]
[1723820128641,3.87183,2582.8,2581.7,0.05162332]
[1723820128844,3.87148,2583.0,2582.3,2.3533]
[1723820129150,0.387148,2583.0,2582.4,3.9497853]
[1723820129342,3.87172,2582.9,2582.4,0.05126396]
[1723820129537,0.8130188,2582.9,2582.4,0.05126396]
[1723820129741,0.387148,2583.0,2582.4,0.05126396]
[1723820129962,0.08218861,2583.7,2582.3,2.3533]
[1723820130164,3.87104,2583.3,2582.5,3.87209]
[1723820130655,3.87077,2583.5,2582.6,3.87206]
[1723820130828,0.08218861,2583.4,2582.3,2.3533]
[1723820131032,3.87145,2583.1,2582.3,2.3533]
[1723820131365,3.87105,2583.3,2582.6,3.87202]
[1723820131606,3.87074,2583.5,2582.7,3.94933543]
[1723820131808,0.387074,2583.4,2582.9,2.3177]
[1723820132309,3.87014,2583.9,2582.9,2.3177]
[1723820132310,3.87026,2583.9,2582.9,2.3177]
[1723820132495,2.3142,2584.4,2582.9,2.3177]
[1723820132496,3.87098,2583.4,2582.9,2.3177]
[1723820132809,3.87084,2583.5,2582.9,2.3177]
[1723820132988,0.774131,2583.5,2582.9,6.18919]
[1723820133184,3.87003,2584.0,2582.9,2.3177]
[1723820133387,3.8708,2583.5,2582.9,2.3177]
[1723820133575,7.74166,2583.5,2582.9,2.3177]
[1723820133772,4.645036,2583.4,2582.9,2.3177]
[1723820134008,3.87102,2583.3,2582.9,2.3177]
[1723820134787,0.774166,2583.4,2582.9,2.3177]
[1723820134788,0.774166,2583.4,2583.0,3.87134]
[1723820134977,3.87045,2583.7,2583.0,3.87134]
[1723820135522,3.87017,2583.9,2583.2,3.87105]
[1723820135722,3.86986,2584.1,2583.3,2.3883]
[1723820136017,3.87036,2583.8,2583.3,2.3883]
[1723820136239,3.87041,2583.7,2583.3,2.3883]
[1723820136399,3.87072,2583.5,2583.3,2.3883]
[1723820136588,3.87071,2583.5,2582.9,9.7842]
[1723820136790,0.387036,2583.7,2582.9,9.7842]
[1723820136791,3.87112,2583.3,2582.9,9.7842]
[1723820137321,3.87078,2583.5,2582.9,9.7842]
[1723820137820,7.74161,2583.5,2582.9,9.7842]
[1723820138023,3.87047,2583.7,2583.0,3.87136]
[1723820138188,0.44764131,2584.3,2583.0,3.87136]
[1723820138384,0.44764131,2584.3,2583.2,3.87116]
[1723820138385,3.86989,2584.1,2583.2,3.87116]
[1723820138612,3.86989,2584.1,2582.9,9.7842]
[1723820138613,3.86989,2584.1,2583.5,3.87062]
[1723820138825,4.256879,2584.1,2583.4,3.87076]
[1723820139125,3.87002,2584.0,2583.3,2.3641]
[1723820139334,0.386989,2584.1,2583.3,2.3641]
[1723820139541,0.60689143,2584.9,2583.3,2.3641]
[1723820139542,3.86943,2584.4,2583.7,3.87028]
[1723820139890,3.8704,2583.8,2583.6,2.259]
[1723820140212,3.8704,2583.8,2583.1,6.87122]
[1723820140213,3.8704,2583.8,2583.1,6.726719]
[1723820140394,3.8704,2583.8,2583.2,3.87116]
[1723820140590,0.774043,2583.8,2583.3,3.87099]
[1723820140898,0.774043,2583.8,2583.1,6.726719]
[1723820140899,4.644413,2583.8,2583.1,6.726719]
[1723820141222,0.4644413,2583.7,2582.9,7.45]
[1723820141458,3.87107,2583.3,2582.7,3.87178]
[1723820141811,3.87076,2583.5,2582.7,3.87178]
[1723820142149,3.87131,2583.1,2582.6,12.26]
[1723820142328,3.8711,2583.3,2582.6,3.87206]
[1723820142621,0.82111446,2583.3,2582.8,3.87174]
[1723820142821,4.257856,2583.5,2582.9,3.87152]
[1723820143037,4.257856,2583.5,2582.9,6.14192]
[1723820143237,4.257856,2583.5,2582.9,6.14189]
[1723820143528,3.87045,2583.7,2583.1,3.87122]
[1723820143894,4.256513,2584.3,2582.6,7.8386]
[1723820144099,3.87012,2583.9,2583.1,3.87122]
[1723820144305,3.87103,2583.3,2582.8,2.3441]
[1723820144522,3.87079,2583.5,2582.8,6.21576]
[1723820144827,3.87079,2583.5,2582.8,2.3441]
[1723820144828,3.87103,2583.3,2582.8,2.3441]
[1723820145031,3.87132,2583.1,2582.8,2.3441]
[1723820145192,3.87103,2583.3,2582.8,2.3441]
[1723820145894,3.87121,2583.2,2582.8,2.3441]
[1723820146091,8.128629,2583.5,2582.8,2.3441]
[1723820146413,3.87072,2583.5,2582.9,3.87159]
[1723820146816,3.87072,2583.5,2582.8,2.3441]
[1723820147031,3.87077,2583.5,2582.8,2.3441]
[1723820147345,4.258037,2583.4,2582.8,2.3441]
[1723820147506,4.258037,2583.4,2582.8,6.21578]
[1723820147702,0.08218861,2583.3,2582.3,2.4196]
[1723820147927,0.43402256,2583.3,2582.6,3.87195]
[1723820148137,2.2733,2583.8,2582.8,3.87174]
[1723820148297,3.87109,2583.3,2582.7,3.8718]
[1723820148498,3.87098,2583.4,2582.7,3.8718]
[1723820148710,3.87161,2582.9,2582.3,3.87242]
[1723820148941,2.2733,2583.0,2581.5,2.4196]
[1723820148942,3.87346,2581.7,2581.5,2.4196]
[1723820149155,0.08218861,2582.1,2581.1,2.4196]
[1723820149360,2.2733,2582.3,2581.1,2.4196]
[1723820149361,3.87353,2581.7,2581.1,2.4196]
[1723820149655,2.2733,2582.3,2581.1,2.4196]
[1723820149656,3.87321,2581.9,2581.3,3.87392]
[1723820150033,3.87362,2581.6,2581.1,2.66156]
[1723820150596,4.10008,2582.2,2581.5,3.87359]
[1723820150911,2.2733,2582.8,2581.5,3.87359]
[1723820150912,7.74493,2582.4,2581.7,3.87341]
[1723820151094,3.8723,2582.5,2581.7,3.87341]
[1723820151295,3.87237,2582.4,2581.8,2.4196]
[1723820151960,3.87251,2582.3,2581.8,2.4196]
[1723820152095,3.87269,2582.2,2581.8,2.4196]
[1723820152296,3.87219,2582.6,2581.8,6.29277]
[1723820152525,3.87255,2582.3,2581.8,2.4196]
[1723820152730,3.87291,2582.1,2581.4,2.4196]
[1723820152952,3.95429861,2582.6,2581.4,5.4196]
[1723820152953,0.387255,2582.2,2581.4,5.4196]
[1723820153266,3.87353,2581.7,2581.4,3.0]
[1723820153421,3.87381,2581.5,2581.0,2.3501]
[1723820153595,0.387353,2581.7,2581.1,3.87422]
[1723820153799,3.87318,2581.9,2581.1,4.10923]
[1723820154026,3.87317,2581.9,2581.1,3.87421]
[1723820154573,3.0,2582.8,2581.0,2.3501]
[1723820154574,3.8738,2581.5,2581.0,2.3501]
[1723820154780,3.8738,2581.5,2580.7,3.87483]
[1723820154972,3.87403,2581.3,2580.7,3.87483]
[1723820155177,3.8738,2581.5,2580.8,3.93809087]
[1723820155328,3.8738,2581.5,2580.9,3.87459]
[1723820155533,0.387317,2581.8,2581.2,3.87405]
[1723820155731,3.87335,2581.8,2581.2,6.22148]
[1723820156172,3.87307,2582.0,2581.2,6.22148]
[1723820156360,3.87307,2582.0,2581.2,2.3474]
[1723820156361,0.39552586,2582.0,2581.2,2.3474]
[1723820156703,3.8738,2581.5,2580.8,5.352]
[1723820156976,3.8738,2581.5,2580.9,3.87453]
[1723820157144,7.74766,2581.5,2580.9,3.0]
[1723820157346,7.74761,2581.5,2580.9,3.0]
[1723820157542,3.87401,2581.3,2580.9,3.005]
[1723820157859,3.8738,2581.5,2580.9,3.005]
[1723820157860,4.648561,2581.5,2580.9,0.005]
[1723820158059,7.74761,2581.5,2580.9,3.87958]
[1723820158263,7.74764,2581.5,2581.0,3.0]
[1723820158449,3.8738,2581.5,2581.0,3.0]
[1723820158853,3.8738,2581.5,2580.9,3.87951]
[1723820158854,3.87441,2581.1,2580.9,0.005]
[1723820159389,7.74883,2581.1,2580.9,0.005]
[1723820159587,3.95664861,2581.0,2580.9,0.005]
[1723820159735,8.22677347,2581.0,2580.9,0.005]
[1723820159932,4.27012486,2581.0,2580.9,0.005]
[1723820160131,13.2886,2581.7,2580.9,0.06176641]
[1723820160369,3.87394,2581.4,2580.9,0.06176641]
[1723820160570,0.387394,2581.4,2580.9,0.06176641]
[1723820160734,3.87404,2581.3,2580.9,0.06176641]
[1723820160934,3.87335,2581.8,2581.0,3.87444]
[1723820161237,3.87335,2581.8,2580.9,0.06176641]
[1723820161238,3.87327,2581.8,2581.2,3.87415]
[1723820161717,0.08218861,2581.9,2581.3,0.04688645]
[1723820162019,3.8735,2581.7,2581.1,4.262229]
[1723820162225,7.74703,2581.7,2581.4,0.05151517]
[1723820162510,7.74704,2581.7,2581.0,3.87436]
[1723820162720,3.87357,2581.6,2581.5,0.05145525]
[1723820162940,7.82932861,2581.6,2581.5,0.05145525]
[1723820163092,7.82932861,2581.6,2580.9,7.455]
[1723820163093,3.87396,2581.4,2580.9,7.455]
[1723820163405,3.87334,2581.8,2580.9,9.129502]
[1723820163612,3.87366,2581.6,2581.0,3.87446]
[1723820163781,7.74735,2581.6,2581.0,3.87446]
[1723820163981,3.87334,2581.8,2581.0,3.87446]
[1723820164305,7.74673,2581.8,2581.1,3.87423]
[1723820164608,7.74673,2581.8,2581.2,3.87408]
[1723820164609,3.87334,2581.8,2581.2,3.87408]
[1723820164771,3.87344,2581.7,2581.2,3.87408]
[1723820164980,3.87344,2581.7,2581.0,8.49421]
[1723820165298,7.74673,2581.8,2581.0,4.61982]
[1723820165493,7.74672,2581.8,2581.1,3.87419]
[1723820165696,3.87343,2581.7,2581.1,3.87419]
[1723820165897,3.87343,2581.7,2580.9,7.455]
[1723820165898,3.87398,2581.4,2580.9,7.455]
[1723820166098,3.87316,2581.9,2580.9,7.455]
[1723820166417,7.74637,2581.9,2581.3,6.13167]
[1723820166597,3.87328,2581.8,2581.3,2.2578]
[1723820166798,3.87291,2582.1,2581.3,2.2578]
[1723820167004,3.87321,2581.9,2581.3,6.35759]
[1723820167203,3.87321,2581.9,2581.3,6.13181]
[1723820167407,3.87288,2582.1,2581.4,3.87378]
[1723820167721,3.87291,2582.1,2581.4,4.487021]
[1723820168019,3.87342,2581.7,2581.3,2.2578]
[1723820168180,3.87316,2581.9,2581.4,3.87383]
[1723820168516,3.87314,2581.9,2581.3,2.48358]
[1723820168675,3.87314,2581.9,2581.3,5.2578]
[1723820168874,3.87291,2582.1,2581.3,5.2578]
[1723820169077,3.87291,2582.1,2581.5,3.8737]
[1723820169301,3.87261,2582.3,2581.7,3.87339]
[1723820169701,3.87261,2582.3,2581.5,3.8736]
[1723820169903,3.8723,2582.5,2581.7,3.87329]
[1723820170110,3.87253,2582.3,2581.7,3.87329]
[1723820170413,3.87253,2582.3,2581.4,0.22578]
[1723820170414,0.631038,2582.7,2581.9,2.2651]
[1723820170577,3.87305,2582.0,2581.6,2.407]
[1723820170783,3.87305,2582.0,2581.5,3.0]
[1723820171185,3.95476861,2582.3,2581.4,3.0]
[1723820171382,3.87314,2581.9,2581.4,3.0]
[1723820171582,7.74555,2582.2,2581.5,3.93046506]
[1723820171832,6.87139,2583.1,2581.5,0.05685506]
[1723820171833,3.87297,2582.0,2581.5,0.05685506]
[1723820171982,3.87311,2581.9,2581.5,0.05685506]
[1723820172183,3.87277,2582.2,2581.7,3.87334]
[1723820172382,3.87277,2582.2,2581.6,3.87347]
[1723820172383,3.87274,2582.2,2581.6,3.87347]
[1723820172681,4.259678,2582.4,2581.9,3.87302]
[1723820172896,4.259678,2582.4,2581.8,0.05665534]
[1723820172897,3.87246,2582.4,2581.8,6.16922]
[1723820173126,3.87246,2582.4,2582.0,0.05652223]
[1723820173328,3.87176,2582.8,2582.1,3.8728]
[1723820173558,0.631036,2582.8,2582.1,0.05645568]
[1723820173758,6.27022,2583.2,2582.3,2.3333]
[1723820173759,3.87132,2583.1,2582.3,2.3333]
[1723820174036,3.87132,2583.1,2582.3,6.20569]
[1723820174037,0.08218861,2583.1,2582.3,6.20569]
[1723820174202,3.87147,2583.0,2582.5,3.87221]
[1723820174404,3.8711,2583.3,2582.7,3.87177]
[1723820174734,3.87177,2582.8,2582.3,2.3333]
[1723820174945,0.387177,2582.7,2582.3,6.20576]
[1723820175094,3.87154,2583.0,2582.3,6.20576]
[1723820175095,3.87154,2583.0,2582.4,3.87228]
[1723820175316,3.8712,2583.2,2582.6,3.87197]
[1723820175515,7.74245,2583.2,2582.6,3.87197]
[1723820175749,3.87134,2583.1,2582.6,3.87197]
[1723820176022,3.87148,2583.0,2582.4,3.87227]
[1723820176347,3.87148,2583.0,2582.5,3.87212]
[1723820176348,4.645714,2583.0,2582.5,3.87212]
[1723820176512,4.645714,2583.0,2582.3,6.20578]
[1723820176513,0.4645714,2582.9,2582.3,6.20578]
[1723820176712,0.4645714,2582.9,2581.2,12.12659875]
[1723820176713,0.54676001,2582.9,2582.0,2.3119]
[1723820176914,3.87088,2583.4,2581.8,7.45]
[1723820176915,3.87215,2582.6,2581.8,7.45]
[1723820177167,3.87215,2582.6,2581.9,0.745]
[1723820177353,3.87215,2582.6,2582.0,3.87287]
[1723820177715,3.87215,2582.6,2582.0,7.74575]
[1723820177950,3.87215,2582.6,2582.0,3.87287]
[1723820178153,7.74305,2583.0,2582.1,2.4849]
[1723820178315,3.87148,2583.0,2582.4,3.8723]
[1723820178654,0.411078,2583.3,2582.4,3.8723]
[1723820178655,3.87125,2583.2,2582.4,3.87235]
[1723820178959,3.87125,2583.2,2582.5,3.8722]
[1723820179171,3.87097,2583.4,2582.7,6.35672]
[1723820179317,3.87096,2583.4,2582.8,3.87176]
[1723820179523,3.87101,2583.3,2582.7,6.35672]
[1723820179770,3.87101,2583.3,2582.5,7.74425]
[1723820179771,3.87143,2583.1,2582.5,7.74425]
[1723820179919,3.87143,2583.1,2582.1,6.87275]
[1723820179920,3.87143,2583.1,2582.6,3.87205]
[1723820180118,3.87117,2583.2,2582.3,6.25991]
[1723820180119,3.87154,2583.0,2582.3,6.25991]
[1723820180313,3.87154,2583.0,2582.5,3.87219]
[1723820180314,7.74312,2583.0,2582.5,3.87219]
[1723820180520,7.74312,2583.0,2582.4,3.87235]
[1723820181141,7.74312,2583.0,2582.1,3.0]
[1723820181142,3.87199,2582.7,2582.1,10.74544]
[1723820181740,3.8721,2582.6,2582.1,6.87271]
[1723820182018,3.87228,2582.5,2582.0,2.3817]
[1723820182321,0.6900982,2582.8,2582.0,2.3817]
[1723820182515,3.87171,2582.9,2582.0,2.3817]
[1723820182516,3.87174,2582.9,2582.0,2.3817]
[1723820182762,3.87174,2582.9,2582.2,3.87257]
[1723820182919,3.87145,2583.1,2582.3,3.8725]
[1723820183120,3.87149,2583.0,2582.3,3.8725]
[1723820183443,3.87149,2583.0,2582.5,3.8722]
[1723820183650,3.87127,2583.2,2582.5,3.8722]
[1723820183968,3.87131,2583.1,2582.6,3.87197]
[1723820184251,3.87131,2583.1,2582.5,3.87212]
[1723820184252,7.74271,2583.1,2582.5,3.87212]
[1723820184439,3.87131,2583.1,2582.5,3.87212]
[1723820184657,7.74277,2583.1,2582.5,3.87212]
[1723820184837,3.87131,2583.1,2582.5,3.87212]
[1723820185039,3.87131,2583.1,2582.5,7.74425]
[1723820185253,3.87131,2583.1,2582.6,3.87201]
[1723820185761,3.87162,2582.9,2582.3,3.87242]
[1723820186060,6.2769,2583.4,2582.1,3.0]
[1723820186061,2.406,2583.4,2582.1,3.0]
[1723820186233,2.406,2583.4,2582.0,6.25456]
[1723820186234,1.564764,2583.3,2582.0,6.25456]
[1723820186434,3.87233,2582.5,2581.8,3.87316]
[1723820186633,3.87229,2582.5,2582.0,3.87289]
[1723820187256,3.87229,2582.5,2582.0,3.87288]
[1723820187257,3.87225,2582.5,2582.0,3.87288]
[1723820187658,0.85661961,2582.5,2581.6,3.87346]
[1723820187883,2.56918861,2582.5,2581.5,7.45]
[1723820188099,3.87267,2582.2,2581.7,3.87334]
[1723820188392,3.8726,2582.3,2581.7,3.87333]
[1723820188536,7.74519,2582.3,2581.7,3.87333]
[1723820188730,3.87259,2582.3,2581.7,3.87333]
[1723820189067,4.53424089,2582.3,2581.8,3.87323]
[1723820189433,3.87289,2582.1,2581.5,7.45]
[1723820189679,0.66165089,2582.3,2581.7,3.87333]
[1723820189680,4.53425089,2582.3,2581.7,3.87333]
[1723820189973,4.53425089,2582.3,2581.5,7.45]
[1723820189974,3.8726,2582.3,2581.8,3.87322]
[1723820190173,3.87232,2582.5,2581.8,4.647887]
[1723820190353,3.87193,2582.7,2582.0,3.8729]
[1723820190354,3.95424861,2582.7,2582.0,3.8729]
[1723820190554,3.87156,2583.0,2582.0,0.62756]
[1723820190767,3.87156,2583.0,2582.4,7.74458]
[1723820191072,3.87124,2583.2,2582.6,3.87206]
[1723820191259,3.87124,2583.2,2582.7,3.87189]
[1723820191646,3.8714,2583.1,2582.5,3.87219]
[1723820191801,3.87124,2583.2,2582.6,3.87198]
[1723820191980,3.87124,2583.2,2582.5,3.87219]
[1723820192191,3.87097,2583.4,2582.8,3.87175]
[1723820192502,3.87097,2583.4,2582.9,3.87161]
[1723820192712,6.26687,2583.6,2582.5,7.74421]
[1723820192713,3.87126,2583.2,2582.5,7.74421]
[1723820192910,3.87126,2583.2,2582.5,3.87221]
[1723820192911,3.87127,2583.2,2582.5,3.87221]
[1723820193052,3.87127,2583.2,2582.7,3.87183]
[1723820193253,0.387097,2583.3,2582.7,3.87182]
[1723820193552,4.258117,2583.3,2582.7,3.87182]
[1723820193754,0.8129057,2583.2,2582.7,3.87182]
[1723820194192,3.87139,2583.1,2582.5,3.87213]
[1723820194690,3.8715,2583.0,2582.4,6.19648]
[1723820194984,3.87164,2582.9,2582.1,6.87273]
[1723820195190,4.55991582,2582.8,2582.2,3.87257]
[1723820195362,7.74377,2582.8,2582.2,3.87254]
[1723820195989,3.87119,2583.2,2582.4,3.87236]
[1723820195990,3.8713,2583.2,2582.4,3.87236]
[1723820196295,3.87129,2583.2,2582.6,3.87205]
[1723820196493,4.48991,2583.2,2582.6,3.87198]
[1723820196992,4.48989,2583.2,2582.6,3.87198]
[1723820197201,3.87157,2583.0,2582.4,3.87227]
[1723820197382,3.87157,2583.0,2582.5,3.8722]
[1723820197705,0.448989,2583.1,2582.7,3.8719]
[1723820197854,8.36104,2583.2,2582.6,2.2733]
[1723820197855,4.48979,2583.2,2582.6,2.2733]
[1723820198056,3.86896198,2583.8,2583.0,3.87138]
[1723820198057,3.87066,2583.6,2583.0,3.87138]
[1723820198707,3.87074,2583.5,2583.0,3.87138]
[1723820199918,7.74134,2583.6,2583.0,3.87138]
[1723820200068,3.87099,2583.4,2582.8,3.87168]
[1723820200270,3.87072,2583.5,2582.9,3.87161]
[1723820201514,2.2613,2583.8,2582.6,12.7233]
[1723820201515,3.87135,2583.1,2582.6,12.7233]
[1723820201661,3.87135,2583.1,2582.7,6.87188]
[1723820201662,0.387135,2583.1,2582.7,6.87188]
[1723820201863,3.87114,2583.3,2582.7,6.87188]
[1723820202200,3.87114,2583.3,2582.7,3.0]
[1723820202579,3.87125,2583.2,2582.7,3.0]
[1723820202968,3.87114,2583.3,2582.7,6.87187]
[1723820203291,3.8711,2583.3,2582.7,8.918585]
[1723820203492,3.8711,2583.3,2582.7,6.87187]
[1723820203788,3.8711,2583.3,2582.6,13.59528]
[1723820203789,0.08218861,2583.6,2582.6,9.7233]
[1723820203991,0.97358381,2583.5,2582.6,7.45]
[1723820204181,3.8712,2583.2,2582.6,11.32194]
[1723820204379,3.8712,2583.2,2582.7,3.87184]
[1723820204587,3.8712,2583.2,2582.6,15.1939]
[1723820204898,3.8712,2583.2,2582.6,11.32194]
[1723820205261,8.516706,2583.2,2582.6,11.32194]
[1723820205457,3.87136,2583.1,2582.6,11.32194]
[1723820205782,3.8712,2583.2,2582.6,11.32194]
[1723820205957,3.8712,2583.2,2582.7,3.8719]
[1723820206161,3.87095,2583.4,2582.6,11.32194]
[1723820206162,3.87095,2583.4,2582.8,7.7434]
[1723820206380,6.13163,2583.8,2582.9,3.87152]
[1723820206381,3.87076,2583.5,2582.9,3.87152]
[1723820206654,3.87076,2583.5,2582.9,6.35722]
[1723820206655,3.871,2583.4,2582.9,6.35722]
[1723820206775,4.257946,2583.4,2582.9,3.87152]
[1723820207014,3.87103,2583.3,2582.8,3.87175]
[1723820207160,0.387076,2583.4,2582.8,3.87175]
[1723820207362,4.258056,2583.4,2582.9,3.87161]
[1723820207562,0.387076,2583.4,2583.0,3.87145]
[1723820207836,3.87049,2583.7,2583.2,3.87107]
[1723820207967,3.87044,2583.7,2583.3,0.387107]
[1723820208314,3.87021,2583.9,2583.3,7.74193]
[1723820208315,7.74047,2583.9,2583.3,7.74193]
[1723820208610,7.74047,2583.9,2583.2,3.87108]
[1723820208611,4.889927,2583.9,2583.2,3.87108]
[1723820208774,7.74041,2583.9,2583.4,3.87084]
[1723820209097,3.87023,2583.9,2583.3,2.2631]
[1723820209279,3.8702,2583.9,2583.4,3.87077]
[1723820209681,3.87028,2583.8,2583.3,6.1341]
[1723820210399,3.87041,2583.7,2583.3,2.2631]
[1723820210603,0.387041,2583.6,2582.9,9.1986]
[1723820210804,4.257691,2583.6,2583.1,3.8713]
[1723820211009,3.87058,2583.6,2582.9,9.19866]
[1723820211180,3.87076,2583.5,2582.9,9.19863]
[1723820211378,3.87087,2583.4,2582.9,13.07016]
[1723820211580,3.87087,2583.4,2582.9,9.19863]
[1723820211787,3.87087,2583.4,2582.9,13.07016]
[1723820211978,0.8128598,2583.4,2582.6,7.45]
[1723820212201,7.555,2584.0,2583.0,3.87144]
[1723820212202,3.87065,2583.6,2583.0,3.87144]
[1723820212508,3.87065,2583.6,2583.0,3.87136]
[1723820212509,3.87064,2583.6,2583.0,3.87136]
[1723820212705,0.387065,2583.5,2582.8,3.87164]
[1723820212905,0.387065,2583.5,2582.9,3.87153]
[1723820213106,3.87087,2583.4,2582.9,3.87153]
[1723820213612,3.87087,2583.4,2582.8,3.87164]
[1723820213613,7.74185,2583.4,2582.8,3.87164]
[1723820213800,4.6837275,2583.4,2582.8,3.87164]
[1723820214151,3.87087,2583.4,2582.9,3.87154]
[1723820214889,3.87065,2583.6,2583.0,3.87146]
[1723820215209,0.42441744,2583.5,2583.1,2.3723]
[1723820215421,3.86959,2584.3,2583.1,2.3723]
[1723820215422,3.87019,2583.9,2583.1,5.3723]
[1723820215572,3.87019,2583.9,2583.4,3.87079]
[1723820215573,0.42442056,2583.8,2583.4,3.87079]
[1723820215916,7.74043,2583.9,2583.3,3.87101]
[1723820216116,3.87028,2583.8,2583.3,3.87101]
[1723820216773,0.774043,2583.9,2583.3,3.87094]
[1723820216975,3.87012,2583.9,2583.3,3.87094]
[1723820217192,3.87035,2583.8,2583.3,3.87094]
[1723820217811,0.62815934,2584.2,2583.4,3.87083]
[1723820217812,7.74006,2584.0,2583.4,3.87083]
[1723820218020,4.29486327,2583.9,2583.4,3.87083]
[1723820218221,7.74005,2584.0,2583.4,3.87083]
[1723820218409,0.4248296,2583.9,2583.4,3.87079]
[1723820218726,3.86999,2584.0,2583.4,3.87079]
[1723820218907,0.42484906,2583.9,2583.4,3.87079]
[1723820219112,3.86975,2584.2,2583.6,3.87049]
[1723820219298,0.42490198,2584.1,2583.6,3.87049]
[1723820219506,3.86975,2584.2,2583.6,3.87049]
[1723820219687,4.68170152,2584.1,2583.4,3.87076]
[1723820219888,3.87026,2583.8,2583.3,3.87094]
[1723820220193,3.87025,2583.9,2583.3,3.87094]
[1723820220399,4.29508266,2583.8,2583.3,3.87094]
[1723820220602,0.46817015,2584.0,2583.1,9.24353]
[1723820220603,3.87053,2583.7,2583.1,9.24353]
[1723820220807,3.87057,2583.6,2583.1,6.87123]
[1723820221510,3.87094,2583.4,2583.0,7.45]
[1723820223184,0.774161,2583.4,2583.0,7.45]
[1723820223388,3.87176,2582.8,2582.7,7.45]
[1723820223632,3.87176,2582.8,2582.3,3.87244]
[1723820223633,3.87151,2583.0,2582.3,11.32241]
[1723820223832,3.87125,2583.2,2582.7,3.87191]
[1723820223992,0.42462008,2583.1,2582.7,3.87191]
[1723820224297,3.872,2582.7,2582.3,7.45]
[1723820224500,3.87209,2582.6,2582.3,7.45]
[1723820224808,3.87169,2582.9,2582.3,11.32241]
[1723820225012,4.29630676,2582.8,2582.3,11.32241]
[1723820225211,3.87178,2582.8,2582.3,11.32241]
[1723820225431,3.87163,2582.9,2582.3,11.32241]
[1723820225633,3.87163,2582.9,2582.4,3.87227]
[1723820225634,0.42450203,2582.8,2582.4,3.87227]
[1723820225831,3.94946198,2583.2,2582.4,3.87227]
[1723820225832,2.3418,2583.2,2582.4,3.87227]
[1723820226042,0.42442717,2583.1,2582.5,3.8721]
[1723820226258,3.87087,2583.4,2582.8,3.87162]
[1723820226429,0.42441705,2583.3,2582.9,4.72331463]
[1723820226728,6.27539618,2583.7,2582.9,7.74306]